bitfinex/quotes_BTCUSD_20250617
["timestamp","ask_amount","ask_price","bid_price","bid_amount"]
[1750166721833,0.54094016,105650.0,105640.0,0.44235992]
[1750166722472,0.54094016,105650.0,105640.0,0.45182558]
[1750166722930,0.53147522,105650.0,105640.0,0.26558833]
[1750166723181,0.53147522,105650.0,105640.0,0.44436028]
[1750166723811,0.20823445,105650.0,105640.0,0.44436028]
[1750166724033,0.53147522,105650.0,105640.0,0.45382558]
[1750166724273,0.01892979,105650.0,105640.0,0.46329061]
[1750166724514,0.21769921,105650.0,105640.0,0.46329061]
[1750166724744,0.22716442,105650.0,105640.0,0.45382513]
[1750166725429,0.21769921,105650.0,105640.0,0.45382513]
[1750166725664,0.22716442,105650.0,105640.0,0.4348939]
[1750166726128,0.54094043,105650.0,105640.0,0.43489426]
[1750166726346,0.20823463,105650.0,105640.0,0.27605426]
[1750166726572,0.5314754,105650.0,105640.0,0.45354567]
[1750166726798,0.20823427,105650.0,105640.0,0.46301115]
[1750166727055,0.20823427,105650.0,105640.0,0.45354567]
[1750166727277,0.21769948,105650.0,105640.0,0.45354567]
[1750166727714,0.21769948,105650.0,105640.0,0.42514833]
[1750166727943,0.5314754,105650.0,105640.0,0.42514833]
[1750166728168,0.5314754,105650.0,105640.0,0.43461435]
[1750166728666,0.61756893,105650.0,105640.0,0.23348833]
[1750166728887,0.61756893,105650.0,105640.0,0.40147435]
[1750166729116,0.52201028,105650.0,105640.0,0.24295435]
[1750166729375,0.52201028,105650.0,105640.0,0.44344028]
[1750166729635,0.52201028,105650.0,105640.0,0.46237178]
[1750166729883,0.52201028,105650.0,105640.0,0.45290567]
[1750166730125,0.21769894,105650.0,105640.0,0.45290513]
[1750166730341,0.22716406,105650.0,105640.0,0.44343965]
[1750166731014,0.22716415,105650.0,105640.0,0.44343965]
[1750166731473,0.22716415,105650.0,105640.0,0.43397399]
[1750166731698,0.21769948,105650.0,105640.0,0.43397399]
[1750166732398,0.21769948,105650.0,105640.0,0.44343974]
[1750166732624,0.21769948,105650.0,105640.0,0.4529054]
[1750166733143,0.20823454,105650.0,105640.0,0.43397399]
[1750166733362,0.53147531,105650.0,105640.0,0.43397399]
[1750166733586,0.52201028,105650.0,105640.0,0.22572]
[1750166733804,0.51254507,105650.0,105640.0,0.19322]
[1750166734035,0.51254507,105650.0,105640.0,0.0347]
[1750166734257,0.51254507,105650.0,105640.0,0.16028]
[1750166736554,0.51254507,105650.0,105640.0,0.002]
[1750166736781,0.51254507,105650.0,105640.0,0.1602]
[1750166737434,0.51254507,105650.0,105640.0,0.1916]
[1750166738613,0.51254507,105650.0,105640.0,0.0334]
[1750166739691,0.51254507,105650.0,105640.0,0.0639]
[1750166744283,0.51254507,105650.0,105640.0,0.25322222]
[1750166744732,0.51254507,105650.0,105640.0,0.0639]
[1750166745507,0.51254507,105650.0,105640.0,0.25322222]
[1750166745715,0.5220101,105650.0,105640.0,0.2816201]
[1750166745926,0.5220101,105650.0,105640.0,0.26268833]
[1750166746370,0.5220101,105650.0,105640.0,0.27215435]
[1750166746780,0.5220101,105650.0,105640.0,0.07336611]
[1750166747227,0.5220101,105650.0,105640.0,0.0639]
[1750166748338,0.61815932,105650.0,105640.0,0.0639]
[1750166749800,0.5220101,105650.0,105640.0,0.25322222]
[1750166750277,0.5220101,105650.0,105640.0,0.26268833]
[1750166750732,0.51254507,105650.0,105640.0,0.07336611]
[1750166751155,0.51254507,105650.0,105640.0,0.0639]
[1750166751428,0.51254507,105650.0,105640.0,0.25322222]
[1750166751658,0.51254507,105650.0,105640.0,0.26268833]
[1750166751883,0.51254507,105650.0,105640.0,0.27215435]
[1750166752692,0.1893043,105650.0,105640.0,0.27215435]
[1750166752915,0.51254507,105650.0,105640.0,0.28162028]
[1750166753148,0.62029043,105660.0,105650.0,0.19876933]
[1750166753375,0.90583496,105660.0,105650.0,0.26136933]
[1750166753842,0.28975412,105660.0,105650.0,0.28029876]
[1750166754076,0.0283917,105660.0,105650.0,0.28029876]
[1750166754301,0.0283917,105660.0,105650.0,0.43781876]
[1750166755302,0.01892756,105660.0,105650.0,0.43781876]
[1750166755531,0.02839161,105660.0,105650.0,0.43781876]
[1750166755776,0.03785574,105660.0,105650.0,0.45968629]
[1750166756008,0.55984721,105660.0,105650.0,0.45022171]
[1750166756230,0.54091965,105660.0,105650.0,0.44075686]
[1750166756450,0.54091965,105660.0,105650.0,0.41888933]
[1750166756901,0.53145569,105660.0,105650.0,0.42835463]
[1750166757128,0.52199147,105660.0,105650.0,0.0626]
[1750166757358,0.52199147,105660.0,105650.0,0.41884951]
[1750166758298,0.52199147,105660.0,105650.0,0.41880951]
[1750166758761,0.51252716,105660.0,105650.0,0.0626]
[1750166758990,0.51252716,105660.0,105650.0,0.15744]
[1750166759282,0.19876951,105650.0,105640.0,0.27255417]
[1750166759541,0.52201028,105650.0,105640.0,0.43945992]
[1750166759764,0.53147522,105650.0,105640.0,0.43945992]
[1750166759990,0.53147522,105650.0,105640.0,0.44892558]
[1750166760666,0.53147522,105650.0,105640.0,0.43099417]
[1750166760853,0.53147522,105650.0,105640.0,0.44045992]
[1750166761286,0.53147522,105650.0,105640.0,0.44992558]
[1750166761516,0.53147522,105650.0,105640.0,0.45092558]
[1750166762509,0.53147522,105650.0,105640.0,0.46039115]
[1750166763858,0.54094007,105650.0,105640.0,0.46039115]
[1750166764023,0.54094007,105650.0,105640.0,0.46039052]
[1750166764673,0.35163559,105650.0,105640.0,0.46039052]
[1750166765081,0.55040501,105650.0,105640.0,0.44145947]
[1750166765303,0.55040501,105650.0,105640.0,0.43199381]
[1750166766085,0.54094016,105650.0,105640.0,0.27455426]
[1750166766290,0.53147522,105650.0,105640.0,0.4414201]
[1750166766721,0.53147522,105650.0,105640.0,0.46035151]
[1750166766962,0.53147522,105650.0,105640.0,0.45088585]
[1750166767359,0.53147522,105650.0,105640.0,0.4414201]
[1750166767577,0.53147522,105650.0,105640.0,0.43195426]
[1750166767806,0.51254507,105650.0,105640.0,0.0663]
[1750166768037,0.51254507,105650.0,105640.0,0.034]
[1750166768249,0.51254507,105650.0,105640.0,0.1594]
[1750166769973,0.60878683,105650.0,105640.0,0.002]
[1750166770202,0.67118683,105650.0,105640.0,0.002]
[1750166770431,0.60878683,105650.0,105640.0,0.002]
[1750166771998,0.67068683,105650.0,105640.0,0.002]
[1750166772236,0.60878683,105650.0,105640.0,0.002]
[1750166772658,0.67268683,105650.0,105640.0,0.002]
[1750166773090,0.60878683,105650.0,105640.0,0.002]
[1750166775114,0.28554606,105650.0,105640.0,0.002]
[1750166775329,0.28554606,105650.0,105640.0,0.035]
[1750166775330,0.60878683,105650.0,105640.0,0.035]
[1750166775540,0.90878683,105650.0,105640.0,0.035]
[1750166776690,0.90878683,105650.0,105640.0,0.0655]
[1750166777139,0.71948253,105650.0,105640.0,0.0655]
[1750166777380,0.90878683,105650.0,105640.0,0.0655]
[1750166782894,0.91825186,105650.0,105640.0,0.25482222]
[1750166783102,0.59501109,105650.0,105640.0,0.27375417]
[1750166783341,0.91825186,105650.0,105640.0,0.07496611]
[1750166783552,0.91825186,105650.0,105640.0,0.0655]
[1750166783763,0.91825186,105650.0,105640.0,0.035]
[1750166786277,0.91825186,105650.0,105640.0,0.002]
[1750166786941,0.91825186,105650.0,105640.0,0.0341]
[1750166787847,0.91825186,105650.0,105640.0,0.0664]
[1750166788073,0.91825186,105650.0,105640.0,0.26518824]
[1750166788288,0.91825186,105650.0,105640.0,0.0664]
[1750166790558,0.91825186,105650.0,105640.0,0.002]
[1750166792526,1.25825186,105650.0,105640.0,0.002]
[1750166792757,1.29540552,105650.0,105640.0,0.002]
[1750166793637,1.32354867,105650.0,105640.0,0.001]
[1750166794327,0.20825399,105640.0,105630.0,0.06574184]
[1750166794552,0.53149476,105640.0,105630.0,0.07520884]
[1750166794774,0.53149476,105640.0,105630.0,0.26454898]
[1750166795228,0.53149476,105640.0,105630.0,0.06574184]
[1750166795671,0.53149476,105640.0,105630.0,0.26554889]
[1750166795877,0.20825399,105640.0,105630.0,0.27501571]
[1750166796100,0.20825399,105640.0,105630.0,0.27601571]
[1750166796313,0.18932222,105640.0,105630.0,0.28548244]
[1750166796535,0.21771956,105640.0,105630.0,0.28328244]
[1750166796751,0.20825399,105640.0,105630.0,0.07500866]
[1750166796975,0.70155399,105640.0,105630.0,0.2643488]
[1750166797200,0.70155399,105640.0,105630.0,0.27381553]
[1750166797431,0.70155399,105640.0,105630.0,0.2643488]
[1750166797683,0.70155399,105640.0,105630.0,0.27381571]
[1750166798109,0.70155399,105640.0,105630.0,0.2738158]
[1750166798752,0.68262222,105640.0,105630.0,0.25488198]
[1750166798973,0.68262222,105640.0,105630.0,0.26434898]
[1750166799222,0.68262222,105640.0,105630.0,0.06554184]
[1750166799447,1.00586299,105640.0,105630.0,0.06554184]
[1750166799874,0.68262222,105640.0,105630.0,0.06554184]
[1750166800321,0.68262222,105640.0,105630.0,0.07500884]
[1750166800543,1.00586299,105640.0,105630.0,0.06554184]
[1750166800759,1.00586299,105640.0,105630.0,0.26434889]
[1750166800980,0.68262222,105640.0,105630.0,0.27381571]
[1750166801425,0.68262222,105640.0,105630.0,0.26434889]
[1750166801640,0.68262222,105640.0,105630.0,0.27381571]
[1750166801874,0.68262222,105640.0,105630.0,0.6159895]
[1750166801875,0.4933,105640.0,105630.0,0.6159895]
[1750166802358,0.03785859,105650.0,105640.0,0.28041947]
[1750166802586,0.03785859,105650.0,105640.0,0.43773947]
[1750166802844,0.02839374,105650.0,105640.0,0.43773947]
[1750166803299,0.0094644,105650.0,105640.0,0.43773947]
[1750166803523,0.19875053,105660.0,105650.0,0.29006352]
[1750166803524,0.01892747,105660.0,105650.0,0.29006352]
[1750166803756,0.0094636,105660.0,105650.0,0.61330429]
[1750166804667,1.05095828,105670.0,105660.0,0.28367818]
[1750166804904,0.00946279,105670.0,105660.0,0.29314187]
[1750166805132,0.36838873,105670.0,105660.0,0.29314187]
[1750166805596,0.36838873,105670.0,105660.0,0.45046187]
[1750166805836,0.02838641,105680.0,105670.0,0.29022071]
[1750166806728,0.21763697,105680.0,105670.0,0.27129504]
[1750166806963,0.2176375,105680.0,105670.0,0.27129504]
[1750166807177,0.2176375,105680.0,105670.0,0.29022089]
[1750166807844,0.01892442,105680.0,105670.0,0.29968368]
[1750166808294,0.22709993,105680.0,105670.0,0.29022089]
[1750166808987,0.22709993,105680.0,105670.0,0.28075801]
[1750166809652,0.22709993,105680.0,105670.0,0.29968368]
[1750166810086,0.02838685,105680.0,105670.0,0.29022089]
[1750166810321,0.5503407,105680.0,105670.0,0.42857504]
[1750166810598,0.22709993,105680.0,105670.0,0.44750089]
[1750166810808,0.22709993,105680.0,105670.0,0.44750107]
[1750166811025,0.22709993,105680.0,105670.0,0.45696395]
[1750166811232,0.22709993,105680.0,105670.0,0.2807581]
[1750166811460,0.54087862,105680.0,105670.0,0.25236847]
[1750166811695,0.53141628,105680.0,105670.0,0.4190718]
[1750166812604,0.53141628,105680.0,105670.0,0.2618318]
[1750166812834,0.53141628,105680.0,105670.0,0.4190718]
[1750166813513,0.20817551,105680.0,105670.0,0.4190718]
[1750166813741,0.53141628,105680.0,105670.0,0.0631]
[1750166813989,0.52195385,105680.0,105670.0,0.22034]
[1750166814679,1.01525385,105680.0,105670.0,0.22034]
[1750166814906,1.01525385,105680.0,105670.0,0.4190718]
[1750166815131,1.01525385,105680.0,105670.0,0.42853504]
[1750166815364,1.01525385,105680.0,105670.0,0.44746125]
[1750166815838,0.51222477,105680.0,105670.0,0.29022116]
[1750166816060,0.71093714,105680.0,105670.0,0.29968395]
[1750166816284,0.72039966,105680.0,105670.0,0.29968395]
[1750166816501,1.04364043,105680.0,105670.0,0.29968395]
[1750166816715,0.84492735,105680.0,105670.0,0.29968395]
[1750166816997,0.52168658,105680.0,105670.0,0.29968395]
[1750166817262,0.51222424,105680.0,105670.0,0.29968395]
[1750166817727,0.52168658,105680.0,105670.0,0.29968395]
[1750166818198,0.71093714,105680.0,105670.0,0.29022116]
[1750166818427,0.51222424,105680.0,105670.0,0.29968395]
[1750166818887,0.52168658,105680.0,105670.0,0.29968395]
[1750166819104,0.51222424,105680.0,105670.0,0.29968395]
[1750166819347,0.51222424,105680.0,105670.0,0.37055496]
[1750166819348,0.50276181,105680.0,105670.0,0.37055496]
[1750166819571,0.51222371,105680.0,105670.0,0.29968395]
[1750166819794,0.54061029,105680.0,105670.0,0.29968395]
[1750166820260,0.5216857,105680.0,105670.0,0.29968395]
[1750166820499,0.01374509,105690.0,105680.0,0.21763706]
[1750166820747,0.00014195,105690.0,105680.0,0.81231844]
[1750166821207,0.00014195,105690.0,105680.0,0.9085602]
[1750166821451,0.00014195,105690.0,105680.0,0.58531943]
[1750166821908,0.00014195,105690.0,105680.0,0.9085602]
[1750166824204,0.00014195,105690.0,105680.0,0.58831943]
[1750166824449,0.00014195,105690.0,105680.0,0.9135602]
[1750166825762,0.00014195,105690.0,105680.0,0.9140802]
[1750166825921,0.00014195,105690.0,105680.0,0.7563602]
[1750166826145,0.00014195,105690.0,105680.0,0.9140802]
[1750166826386,0.00014195,105690.0,105680.0,0.9140402]
[1750166826618,0.00014195,105690.0,105680.0,0.59079943]
[1750166828089,0.00014195,105690.0,105680.0,0.7563602]
[1750166828328,0.00014195,105690.0,105680.0,0.9139602]
[1750166828576,0.55003088,105710.0,105700.0,0.22031475]
[1750166828577,0.22679011,105710.0,105700.0,0.22031475]
[1750166828794,0.55003088,105710.0,105700.0,0.42894515]
[1750166829026,0.22679011,105710.0,105700.0,0.42894515]
[1750166829470,0.55003088,105710.0,105700.0,0.4384057]
[1750166829728,0.22679011,105710.0,105700.0,0.42894515]
[1750166829956,0.55003088,105710.0,105700.0,0.43840579]
[1750166830177,0.55003088,105710.0,105700.0,0.4412188]
[1750166830864,0.55003088,105710.0,105700.0,0.45067926]
[1750166831303,0.55003088,105710.0,105700.0,0.46013963]
[1750166831988,0.55003088,105710.0,105700.0,0.30253963]
[1750166832215,0.55003088,105710.0,105700.0,0.43159825]
[1750166832430,0.55003088,105710.0,105700.0,0.4202884]
[1750166832644,0.55003088,105710.0,105700.0,0.42974886]
[1750166833063,0.55003088,105710.0,105700.0,0.43920923]
[1750166833724,0.03759203,105710.0,105700.0,0.77187011]
[1750166833954,0.04705115,105710.0,105700.0,0.44862934]
[1750166834182,0.00945903,105710.0,105700.0,0.42970771]
[1750166834403,0.86167567,105720.0,105710.0,0.28307529]
[1750166835074,1.06031357,105720.0,105710.0,0.28307529]
[1750166835515,1.06031357,105720.0,105710.0,0.28307547]
[1750166835755,1.06031357,105720.0,105710.0,0.27361608]
[1750166836037,1.05085525,105720.0,105710.0,0.28307565]
[1750166836263,1.08964544,105720.0,105710.0,0.29253495]
[1750166836481,0.54154851,105720.0,105710.0,0.30199416]
[1750166836700,0.75910349,105720.0,105710.0,0.30199416]
[1750166836921,1.08234426,105720.0,105710.0,0.27361626]
[1750166837140,0.74964517,105720.0,105710.0,0.28307583]
[1750166837364,1.07288594,105720.0,105710.0,0.29253531]
[1750166837799,1.06342753,105720.0,105710.0,0.27361626]
[1750166838035,1.06342753,105720.0,105710.0,0.28307583]
[1750166838511,1.06342753,105720.0,105710.0,0.27361626]
[1750166838936,1.06342753,105720.0,105710.0,0.28307583]
[1750166839610,1.06342753,105720.0,105710.0,0.27361626]
[1750166839852,1.05396886,105720.0,105710.0,0.27361626]
[1750166844782,0.73072809,105720.0,105710.0,0.27361626]
[1750166844987,1.05396886,105720.0,105710.0,0.27361626]
[1750166845223,0.74018676,105720.0,105710.0,0.28307565]
[1750166845448,0.74018676,105720.0,105710.0,0.29253495]
[1750166845673,1.06342753,105720.0,105710.0,0.29253495]
[1750166846528,0.74018676,105720.0,105710.0,0.30199416]
[1750166846729,1.06342753,105720.0,105710.0,0.30199416]
[1750166847064,0.8837068,105720.0,105710.0,0.30199416]
[1750166847384,0.87424804,105720.0,105710.0,0.30199416]
[1750166847578,0.68988464,105720.0,105710.0,0.30199416]
[1750166847802,0.88852245,105720.0,105710.0,0.50827505]
[1750166848021,0.69934349,105720.0,105710.0,0.50827505]
[1750166848219,0.87906404,105720.0,105710.0,0.47989715]
[1750166848431,0.87906404,105720.0,105710.0,0.48935672]
[1750166848722,0.86960537,105720.0,105710.0,0.47989715]
[1750166849077,0.86960537,105720.0,105710.0,0.48935672]
[1750166849394,0.86960537,105720.0,105710.0,0.33219672]
[1750166849666,0.19865651,105710.0,105700.0,0.20813576]
[1750166849911,0.52189728,105710.0,105700.0,0.41027475]
[1750166850150,0.52189728,105710.0,105700.0,0.26257548]
[1750166850393,0.52189728,105710.0,105700.0,0.0324]
[1750166850627,0.51243762,105710.0,105700.0,0.35583548]
[1750166850840,0.51243762,105710.0,105700.0,0.19867548]
[1750166851053,0.51243762,105710.0,105700.0,0.35583548]
[1750166851376,0.51243762,105710.0,105700.0,0.36529612]
[1750166851383,0.51243762,105710.0,105700.0,0.43535667]
[1750166851588,0.51243762,105710.0,105700.0,0.42589612]
[1750166851842,0.00946046,105700.0,105690.0,0.26875457]
[1750166852068,0.33270123,105700.0,105690.0,0.32417926]
[1750166852325,0.53137653,105700.0,105690.0,0.32418016]
[1750166852558,0.53137653,105700.0,105690.0,0.48134025]
[1750166853026,0.53137653,105700.0,105690.0,0.5012627]
[1750166853477,0.53137653,105700.0,105690.0,0.33464152]
[1750166853698,0.53137653,105700.0,105690.0,0.49180152]
[1750166854164,0.53137653,105700.0,105690.0,0.49280152]
[1750166854665,0.53137653,105700.0,105690.0,0.48334025]
[1750166854893,0.52191607,105700.0,105690.0,0.48334025]
[1750166855132,0.51245552,105700.0,105690.0,0.21976]
[1750166855551,0.51245552,105700.0,105690.0,0.41845429]
[1750166855748,0.51245552,105700.0,105690.0,0.42791565]
[1750166855966,0.51245552,105700.0,105690.0,0.43737692]
[1750166856176,0.01892075,105700.0,105690.0,0.3862381]
[1750166856381,0.1183813,105700.0,105690.0,0.4584991]
[1750166856638,0.10892013,105700.0,105690.0,0.4584991]
[1750166856852,0.01892013,105700.0,105690.0,0.4574991]
[1750166857514,0.0283805,105700.0,105690.0,0.4574991]
[1750166857768,0.0283805,105700.0,105690.0,0.52837011]
[1750166857988,0.55029719,105700.0,105690.0,0.21996]
[1750166858207,0.54083708,105700.0,105690.0,0.41865402]
[1750166858420,0.54083708,105700.0,105690.0,0.43757683]
[1750166858803,0.53137671,105700.0,105690.0,0.42811556]
[1750166858941,0.53137671,105700.0,105690.0,0.43757683]
[1750166859173,0.53137671,105700.0,105690.0,0.44703792]
[1750166859383,0.53137671,105700.0,105690.0,0.44703801]
[1750166859829,0.20813541,105700.0,105690.0,0.4564991]
[1750166860041,0.21759596,105700.0,105690.0,0.45649856]
[1750166860267,0.03784079,105700.0,105690.0,0.45649856]
[1750166860467,0.0378407,105700.0,105690.0,0.45649856]
[1750166860745,0.04730125,105700.0,105690.0,0.45649856]
[1750166861357,0.22705607,105700.0,105690.0,0.42811529]
[1750166861613,0.52705607,105700.0,105690.0,0.44703756]
[1750166861813,0.52705607,105700.0,105690.0,0.4186542]
[1750166862021,0.51759605,105700.0,105690.0,0.4186542]
[1750166862233,0.51759605,105700.0,105690.0,0.43757701]
[1750166862434,0.52705669,105700.0,105690.0,0.45649928]
[1750166862671,0.22705669,105700.0,105690.0,0.45649928]
[1750166862876,0.0283813,105700.0,105690.0,0.45649874]
[1750166863057,0.22705678,105700.0,105690.0,0.44703774]
[1750166863415,0.0283813,105700.0,105690.0,0.45649874]
[1750166863833,0.03784194,105700.0,105690.0,0.45649874]
[1750166864064,0.01892075,105700.0,105690.0,0.45649874]
[1750166864509,0.0283813,105700.0,105690.0,0.45649874]
[1750166864924,0.22705669,105700.0,105690.0,0.45649874]
[1750166865423,0.01892075,105700.0,105690.0,0.45649874]
[1750166865850,0.01892031,105700.0,105690.0,0.45649874]
[1750166866054,0.02838077,105700.0,105690.0,0.45649874]
[1750166866302,0.01892031,105700.0,105690.0,0.45649874]
[1750166866619,0.01892031,105700.0,105690.0,0.52736975]
[1750166866840,0.01892013,105700.0,105690.0,0.43757593]
[1750166867253,0.02838033,105700.0,105690.0,0.43757593]
[1750166867381,0.01892013,105700.0,105690.0,0.43757593]
[1750166867600,0.00946002,105700.0,105690.0,0.43757593]
[1750166867806,0.36837826,105710.0,105700.0,0.27979587]
[1750166868249,0.56703495,105710.0,105700.0,0.27979587]
[1750166868455,0.36122686,105710.0,105700.0,0.27979587]
[1750166868673,0.36122686,105710.0,105700.0,0.27033576]
[1750166868674,0.21757583,105710.0,105700.0,0.27033576]
[1750166868904,0.02837871,105710.0,105700.0,0.27979605]
[1750166869116,0.01891905,105710.0,105700.0,0.29871636]
[1750166869766,0.03783855,105710.0,105700.0,0.27979605]
[1750166869982,0.02837835,105710.0,105700.0,0.28925616]
[1750166870619,0.69161912,105710.0,105700.0,0.28925616]
[1750166871034,0.89027581,105710.0,105700.0,0.28925616]
[1750166872601,0.89027581,105710.0,105700.0,0.44641616]
[1750166873523,0.89027581,105710.0,105700.0,0.43695605]
[1750166873953,0.8808166,105710.0,105700.0,0.42749576]
[1750166874382,0.55757583,105710.0,105700.0,0.43695605]
[1750166874595,0.8808166,105710.0,105700.0,0.43695605]
[1750166875674,0.87135676,105710.0,105700.0,0.44641616]
[1750166875894,0.8808166,105710.0,105700.0,0.43695605]
[1750166876327,0.55757583,105710.0,105700.0,0.43695605]
[1750166877435,0.55757583,105710.0,105700.0,0.44641625]
[1750166877648,0.55757583,105710.0,105700.0,0.45587636]
[1750166878110,0.55757529,105710.0,105700.0,0.45587636]
[1750166878331,0.36837835,105710.0,105700.0,0.45587636]
[1750166878553,0.35891869,105710.0,105700.0,0.45587636]
[1750166878752,0.36837835,105710.0,105700.0,0.45587636]
[1750166879012,0.3778381,105710.0,105700.0,0.45587636]
[1750166879235,0.36837835,105710.0,105700.0,0.45587636]
[1750166879480,0.35891869,105710.0,105700.0,0.45587636]
[1750166880172,0.34194813,105720.0,105710.0,0.2694159]
[1750166880419,0.37032433,105720.0,105710.0,0.2694159]
[1750166880625,0.55950329,105720.0,105710.0,0.2788752]
[1750166880813,0.55950329,105720.0,105710.0,0.28833441]
[1750166881106,0.35140654,105720.0,105710.0,0.28833441]
[1750166881338,0.3608653,105720.0,105710.0,0.28833441]
[1750166881571,0.33248946,105720.0,105710.0,0.61157518]
[1750166881819,0.3419476,105720.0,105710.0,0.28833441]
[1750166882087,0.55765444,105740.0,105730.0,0.00945805]
[1750166882330,0.53129781,105740.0,105720.0,0.19863781]
[1750166882566,0.53129781,105740.0,105710.0,0.28543861]
[1750166882567,0.21755516,105720.0,105710.0,0.4202166]
[1750166882814,0.0189186,105710.0,105700.0,0.28199614]
[1750166883044,0.0189186,105710.0,105700.0,0.29145625]
[1750166883311,0.53133699,105720.0,105710.0,0.27251608]
[1750166883522,0.3742995,105720.0,105710.0,0.27251608]
[1750166883748,0.56347846,105720.0,105710.0,0.27251608]
[1750166883971,0.5729374,105720.0,105710.0,0.43913547]
[1750166884648,0.5729374,105720.0,105710.0,0.42967608]
[1750166884873,0.5634789,105720.0,105710.0,0.42967617]
[1750166885096,0.55402014,105720.0,105710.0,0.42967617]
[1750166885998,0.55402014,105720.0,105710.0,0.4202166]
[1750166886225,0.55402014,105720.0,105710.0,0.42967608]
[1750166886472,0.55402014,105720.0,105710.0,0.4202166]
[1750166886708,0.55402014,105720.0,105710.0,0.42967617]
[1750166886918,0.37426076,105720.0,105710.0,0.42967626]
[1750166887217,0.37426076,105720.0,105710.0,0.43913583]
[1750166887456,0.37426076,105720.0,105710.0,0.44859531]
[1750166887916,0.37426076,105720.0,105710.0,0.42967626]
[1750166888140,0.37426076,105720.0,105710.0,0.27251626]
[1750166888378,0.37426076,105720.0,105710.0,0.43909583]
[1750166888833,0.37426076,105720.0,105710.0,0.44855522]
[1750166889060,0.23077937,105720.0,105710.0,0.44855522]
[1750166889286,0.23077937,105720.0,105710.0,0.43909583]
[1750166890174,0.24023804,105720.0,105710.0,0.44855531]
[1750166890390,0.24023804,105720.0,105710.0,0.4580147]
[1750166890610,0.24023804,105720.0,105710.0,0.43909583]
[1750166891015,0.56347881,105720.0,105710.0,0.35577651]
[1750166891261,0.56347881,105720.0,105710.0,0.36523635]
[1750166891487,0.2081159,105710.0,105700.0,0.27293576]
[1750166891708,0.21757574,105710.0,105700.0,0.3361704]
[1750166891936,0.22703495,105710.0,105700.0,0.5027506]
[1750166892164,0.22703495,105710.0,105700.0,0.4932904]
[1750166892404,0.21757574,105710.0,105700.0,0.4932904]
[1750166893531,0.21757574,105710.0,105700.0,0.4942904]
[1750166894161,0.21757574,105710.0,105700.0,0.4952904]
[1750166894615,0.02837817,105710.0,105700.0,0.35709071]
[1750166894871,0.02837817,105710.0,105700.0,0.51421071]
[1750166895091,0.03783792,105710.0,105700.0,0.51421071]
[1750166895316,0.02837817,105710.0,105700.0,0.51421071]
[1750166895540,0.39777345,105720.0,105700.0,0.51421009]
[1750166895781,0.01891905,105710.0,105700.0,0.51420965]
[1750166896235,0.02837817,105710.0,105700.0,0.50474972]
[1750166896456,0.03783792,105710.0,105700.0,0.50374972]
[1750166896678,0.02837817,105710.0,105700.0,0.50374972]
[1750166896911,0.03783792,105710.0,105700.0,0.50374972]
[1750166897144,0.02837817,105710.0,105700.0,0.50374972]
[1750166897408,0.22703459,105710.0,105700.0,0.4932897]
[1750166897640,0.03783774,105710.0,105700.0,0.4942897]
[1750166897857,0.23649434,105710.0,105700.0,0.4942897]
[1750166898079,0.02837808,105710.0,105700.0,0.4942897]
[1750166898310,0.03783774,105710.0,105700.0,0.4952897]
[1750166899009,0.01891851,105710.0,105700.0,0.4952897]
[1750166899233,0.01891842,105710.0,105700.0,0.4952897]
[1750166899692,0.00945921,105710.0,105700.0,0.50474963]
[1750166900595,0.0189186,105710.0,105700.0,0.50474963]
[1750166901058,0.19073544,105710.0,105700.0,0.002]
[1750166901282,0.95807351,105710.0,105700.0,0.002]
[1750166901802,1.25807351,105710.0,105700.0,0.002]
[1750166902045,1.27261436,105710.0,105700.0,0.001]
[1750166902260,1.19703928,105710.0,105700.0,0.001]
[1750166902991,0.21761647,105690.0,105680.0,0.42969512]
[1750166903184,0.21761638,105690.0,105680.0,0.44861919]
[1750166903436,0.54085715,105690.0,105680.0,0.4391572]
[1750166903658,0.20815171,105700.0,105680.0,0.37475614]
[1750166903887,0.22707219,105700.0,105690.0,0.2603942]
[1750166904109,0.55031296,105700.0,105690.0,0.26985565]
[1750166904339,0.55031296,105700.0,105690.0,0.27931701]
[1750166904568,0.55031296,105700.0,105690.0,0.26985565]
[1750166905245,0.55031296,105700.0,105690.0,0.27931701]
[1750166905457,0.55031296,105700.0,105690.0,0.26985565]
[1750166905898,0.55031296,105700.0,105690.0,0.27931701]
[1750166906097,0.55031296,105700.0,105690.0,0.26985565]
[1750166906381,0.54085303,105700.0,105690.0,0.2603942]
[1750166907158,0.21761226,105700.0,105690.0,0.2603942]
[1750166907393,0.54085303,105700.0,105690.0,0.26985565]
[1750166907878,0.54085303,105700.0,105690.0,0.25093266]
[1750166908108,0.52193246,105700.0,105690.0,0.0617]
[1750166908814,0.52193246,105700.0,105690.0,0.07116163]
[1750166909058,0.52193246,105700.0,105690.0,0.08062317]
[1750166909262,0.52193246,105700.0,105690.0,0.26985583]
[1750166909704,0.52193246,105700.0,105690.0,0.26039429]
[1750166909932,0.52193246,105700.0,105690.0,0.07116163]
[1750166910417,0.52193246,105700.0,105690.0,0.26985583]
[1750166910906,0.52193246,105700.0,105690.0,0.27931728]
[1750166911577,0.52193246,105700.0,105690.0,0.26985583]
[1750166911804,0.20815206,105700.0,105690.0,0.2793171]
[1750166912031,0.54085356,105700.0,105690.0,0.26985583]
[1750166912277,0.54085356,105700.0,105690.0,0.26039429]
[1750166912526,0.54085356,105700.0,105690.0,0.26985574]
[1750166913202,0.54085356,105700.0,105690.0,0.2793171]
[1750166913452,0.34691103,105700.0,105690.0,0.26985574]
[1750166913681,0.53614208,105700.0,105690.0,0.26039429]
[1750166913919,0.53614208,105700.0,105690.0,0.26985574]
[1750166914150,0.53614208,105700.0,105690.0,0.27931719]
[1750166914369,0.53614208,105700.0,105690.0,0.26985583]
[1750166914603,0.53614208,105700.0,105690.0,0.27931728]
[1750166914847,0.53614208,105700.0,105690.0,0.28877864]
[1750166915098,0.52668135,105700.0,105690.0,0.28877864]
[1750166915312,0.52668135,105700.0,105690.0,0.27931728]
[1750166916490,0.51722098,105700.0,105690.0,0.0617]
[1750166916962,0.51722098,105700.0,105690.0,0.07116163]
[1750166917186,0.51722098,105700.0,105690.0,0.0617]
[1750166917417,0.51722098,105700.0,105690.0,0.07116163]
[1750166917643,0.51722098,105700.0,105690.0,0.26039429]
[1750166917841,0.51722098,105700.0,105690.0,0.26985583]
[1750166918771,0.21761217,105700.0,105690.0,0.28877846]
[1750166919046,0.55031367,105700.0,105690.0,0.29823982]
[1750166919270,0.2270729,105700.0,105690.0,0.29823946]
[1750166919504,0.55031367,105700.0,105690.0,0.28877828]
[1750166919738,0.54085294,105700.0,105690.0,0.28877828]
[1750166920001,0.54085294,105700.0,105690.0,0.27931701]
[1750166920232,0.21761217,105700.0,105690.0,0.27931701]
[1750166920464,0.54085294,105700.0,105690.0,0.28877828]
[1750166920690,0.54085294,105700.0,105690.0,0.28877819]
[1750166920928,0.54085294,105700.0,105690.0,0.27931701]
[1750166921149,0.54085294,105700.0,105690.0,0.28877828]
[1750166921829,0.21761217,105700.0,105690.0,0.28877828]
[1750166922058,0.54085294,105700.0,105690.0,0.26985565]
[1750166922286,0.53139283,105700.0,105690.0,0.25093266]